Workbook

Sheet jikkou
A1: ■試行錯誤法による端部支柱（単杭）の検討実行フロー | V1: STEP-1
N5: ※衝突荷重は別シートにより計算することができる。
B7: 計算条件の入力
B8: ↓ 下欄（赤太字の数値）への入力を行い、①～③の計算条件を設定する。
C9: ①杭基礎部材の設定 | L9: ②地盤条件の設定 | AD9: Fmax＝ | AF9: =kouzoukeisan!H81 -> 106.2895278
C10: 杭の材質 | F10: ＳＴＫ | H10: 400 | L10: 横地盤反力係数 | O10: kh＝ | Q10: 30000
C11: ヤング率 | F11: Ｅ＝ | H11: 200000000 | O11: （※N値15相当の砂地盤）
C12: 管径 | F12: Ｄ＝ | H12: 318.5 | L12: ③津波の諸元（漂流物のエネルギー）
C13: 肉厚 | F13: ｔ＝ | H13: 10.3 | L13: 衝突エネルギー | O13: Ｅｄ＝ | Q13: 0.668
C14: 腐食代 | F14: ⊿ｔ＝ | H14: 3 | L14: 衝突力 | O14: F1＝ | Q14: 1.423
C15: 衝突力の負担本数 | F15: n＝ | H15: 1 | L15: 衝突位置 | O15: ｈ＝ | Q15: 2 | AG15: Ｍmax＝ | AI15: =kouzoukeisan!H93 -> 235.119
AG16: ＭＲ＝ | AI16: =kouzoukeisan!H77 -> 237.897
N17: 計算条件を入力したらSTEP-1へ進む！ | AE17: ＭＲ／Ｍmax＝ | AI17: =kouzoukeisan!H100 -> 1.011
AI18: =IF(AI17>=1,"≧1.0・・・OK!","＜1.0・・・NG!") -> ≧1.0・・・OK!
B19: STEP-1：部材の確定
C20: 漂流物の衝突エネルギーを吸収できる杭の諸元を確定する。 杭に発生する曲げ応力が杭の曲げ耐力に等しくなるような反力Fmaxを求め、この反力が作用するときの杭の吸収エネルギーが衝突エネルギーを上回ることを確認して杭の断面諸元を決定する。 | AG20: Ｅｎ＋ＥＲ＝ | AI20: =kouzoukeisan!H134 -> 6.755
B24: ↓ 上記①②③の条件を入力したら下のボタンをクリックする。
J25: 衝突荷重 | N25: Fmax＝ | P25: =kouzoukeisan!H81 -> 106.2895278 | X25: （Ｅｎ＋ＥＲ）／Ｅｄ＝ | AB25: =kouzoukeisan!H137 -> 10.112
J26: ＭＲ／Ｍmax＝ | N26: =kouzoukeisan!H100 -> 1.011 | Q26: =IF(N26>=1,"≧1.0・・・OK!","＜1.0・・・NG!") -> ≧1.0・・・OK! | AB26: =IF(AB25>=1,"≧1.0・・・OK!","＜1.0・・・NG!") -> ≧1.0・・・OK!
J27: （Ｅｎ＋ＥＲ）／Ｅｄ＝ | N27: =kouzoukeisan!H137 -> 10.112 | Q27: =IF(N27>=1,"≧1.0・・・OK!","＜1.0・・・NG!") -> ≧1.0・・・OK! | V27: STEP-2
N29: =IF(N26>=1,IF(N27>=1,"STEP-1の所要を満足したのでSTEP-2へ進む！","※反力F作用時の吸収エネルギーが衝突エネルギーを下回るので、計算条件を入力し直すこと！"),"") -> STEP-1の所要を満足したのでSTEP-2へ進む！
B32: STEP-2：作用荷重の決定、杭の挙動解析（発生応力、所要根入れ長） | X32: F＝ | Z32: =kouzoukeisan!H148 -> 34.12571301
C33: STEP-1で確定した断面諸元を有する杭部材に漂流物が衝突した場合の挙動を解析する。 杭が吸収するエネルギーが衝突エネルギーに等しくなるような衝突力Fを求める。この衝突力が作用するときの杭の断面応力及び所要根入れ長を計算するとともに、杭の吸収エネルギーが衝突エネルギーに等しいことを説明する。 | X33: Ｍmax＝ | Z33: =kouzoukeisan!H159 -> 75.488
X34: ＭＲ＝ | Z34: =kouzoukeisan!H77 -> 237.897
X36: ＭＲ／Ｍmax＝ | AB36: =kouzoukeisan!H166 -> 3.151
AB37: =IF(AB36>=1,"≧1.0・・・OK!","＜1.0・・・NG!") -> ≧1.0・・・OK!
B38: ↓ STEP-1の所要を満足したら下のボタンをクリックする。
J39: 衝突荷重 | N39: F＝ | P39: =kouzoukeisan!H148 -> 34.12571301 | X39: Ｅｎ＋ＥＲ＝ | Z39: =kouzoukeisan!H198 -> 0.675
O40: =IF(P39<=P40,"＜","≧") -> ≧ | P40: =Q14 -> 1.423 | S40: =F1
J41: ＭＲ／Ｍmax＝ | N41: =kouzoukeisan!H166 -> 3.151 | Q41: =IF(N41>=1,"≧1.0・・・OK!","＜1.0・・・NG!") -> ≧1.0・・・OK!
J42: （Ｅｎ＋ＥＲ）／Ｅｄ＝ | N42: =kouzoukeisan!H201 -> 1.01 | Q42: =IF(N42>=1,"≧1.0・・・OK!","＜1.0・・・NG!") -> ≧1.0・・・OK!
K43: 頭部変形 | N43: ｙｔｏｐ＝ | P43: =kouzoukeisan!H179 -> 0.034
K44: 発生応力 | N44: Ｍmax＝ | P44: =kouzoukeisan!H159 -> 75.488 | Z44: （Ｅｎ＋ＥＲ）／Ｅｄ＝ | AD44: =kouzoukeisan!H201 -> 1.01
N45: σmax＝ | P45: =kouzoukeisan!H163 -> 140573.557 | AD45: =IF(AD44>=1,"≧1.0・・・OK!","＜1.0・・・NG!") -> ≧1.0・・・OK!
K46: 所要根入れ長 | N46: ｌｍ１＝ | P46: =kouzoukeisan!H211 -> 4.91 | Z46: 所要根入れ長
AA47: ｌｍ１＝ | AC47: =kouzoukeisan!H211 -> 4.91
Z48: 発生応力
AA49: σmax＝ | AC49: =kouzoukeisan!H163 -> 140573.557

Sheet kouzoukeisan
A1: 端部支柱の構造計算（頭部自由杭の計算）
A2: ■計算条件
B3: ①杭基礎部材の条件
B4: ・杭の規格及び形状
C5: 杭の材質 | H5: ＳＴＫ | J5: =jikkou!H10 -> 400
C6: ヤング率 | H6: Ｅ＝ | J6: =jikkou!H11 -> 200000000 | L6: kN/㎡
C7: 管径 | H7: Ｄ＝ | J7: =jikkou!H12 -> 318.5 | L7: mm | N7: （ | O7: =ROUND(J7/1000,6) -> 0.3185 | Q7: m）
C8: 肉厚 | H8: ｔ＝ | J8: =jikkou!H13 -> 10.3 | L8: mm | N8: （ | O8: =ROUND(J8/1000,6) -> 0.0103 | Q8: m）
C9: 腐食代 | H9: ⊿ｔ＝ | J9: =jikkou!H14 -> 3 | L9: mm | N9: （ | O9: =ROUND(J9/1000,6) -> 0.003 | Q9: m）
B10: ・杭の諸元
C11: 初期断面積 | H11: Ａ＝ | J11: =ROUND(PI()/4*(O7^2-J14^2),3) -> 0.01 | L11: ㎡
C12: 腐食後肉厚 | H12: tp＝ | J12: =ROUND(O8-O9,3) -> 0.007 | L12: m | N12: （Ｄ／tp＝ | P12: =ROUND(J13/J12,1) -> 44.7 | R12: =IF(P12>8,IF(P12<110,"・・・8<D/tp<110より、",">110より、"),"<8より、") -> ・・・8<D/tp<110より、
C13: 腐食後外径 | H13: Ｄ＝ | J13: =ROUND(O7-2*O9,3) -> 0.313 | L13: m | N13: =IF(P12>8,IF(P12<110,"鋼材の加工硬化を考慮した静的降伏応力の算定式の適用範囲であるものとして検討する。）","鋼管支柱の基部に局部座屈が発生する時の塑性変形を考慮して検討する。）"),"鋼管支柱の基部に局部座屈が発生する時の塑性変形を考慮して検討する。）") -> 鋼材の加工硬化を考慮した静的降伏応力の算定式の適用範囲であるものとして検討する。） | V13: =IF(P12>8,IF(P12<110,"","本プログラム適用範囲外！"),"本プログラム適用範囲外！") -> 
C14: 内径 | H14: ｄ＝ | J14: =ROUND(O7-2*O8,3) -> 0.298 | L14: m
B15: ・杭の断面性能
C16: 断面二次モーメント | H16: Ｉo＝ | J16: =ROUND(PI()*(O7^4-O8^4)/64,6) -> 0.000505 | L16: m4 | N16: （腐食前）
H17: Ｉ＝ | J17: =ROUND(PI()*(J13^4-J14^4)/64,6) -> 8.4e-05 | L17: m4 | N17: （腐食後）
C18: ＥＩの計算 | H18: ＥＩo＝ | J18: =ROUND(J6*J16,0) -> 101000 | L18: kN・㎡ | N18: （腐食前）
H19: ＥＩ＝ | J19: =ROUND(J6*J17,0) -> 16800 | L19: kN・㎡ | N19: （腐食後）
C20: 断面係数 | H20: Ｚ＝ | J20: =ROUND(J17*2/J13,6) -> 0.000537 | L20: m3 | N20: （腐食後）
C21: 塑性断面係数 | H21: Ｚp＝ | J21: =ROUND((J13^3-J14^3)/6,6) -> 0.0007 | L21: m3
B22: ・杭・地盤の特性値
C23: 杭幅 | H23: B＝ | J23: =J13 -> 0.313 | L23: m
H24: B・kh＝ | J24: =ROUND(J32*J23,0) -> 9390 | L24: kN/m3
C25: 特性値 | H25: βo＝ | J25: =ROUND((J24/4/J18)^(1/4),4) -> 0.3905 | L25: m-1 | N25: （腐食前）
H26: β＝ | J26: =ROUND((J24/4/J19)^(1/4),4) -> 0.6114 | L26: m-1 | N26: （腐食後）
B27: ・計算定数
H28: 材質係数： | J28: =IF(J5=400,527.5,IF(#REF!=490,703.3,"指定ERR")) -> 527.5
H29: 衝撃係数： | J29: 1.2 | N29: （固定値）
I30: 衝突力の負担本数： | J30: =jikkou!H15 -> 1 | L30: 本
B31: ②地盤条件
C32: 横地盤反力係数 | H32: kh＝ | J32: =jikkou!Q10 -> 30000 | L32: kN/m4 | N32: =jikkou!O11 -> （※N値15相当の砂地盤）
B34: ③津波の諸元
C35: 衝突エネルギー | H35: Ｅｄ＝ | J35: =jikkou!Q13 -> 0.668 | L35: kN・m
C36: 衝突位置 | H36: ｈ＝ | J36: =jikkou!Q15 -> 2 | L36: m
F39: ytop
B43: F
T44: δL
U46: D
D47: h
D54: lm1
A60: 検討モデル図
A62: ■STEP-1：部材の確定
B63: 漂流物の衝突エネルギーを吸収できる杭の諸元を確定する。 杭に発生する曲げ応力が杭の曲げ耐力に等しくなるような反力Fmaxを求め、この反力が作用するときの杭の吸収エネルギーが衝突エネルギーを上回ることを確認して杭の断面諸元を決定する。
B67: ・杭の降伏応力
C68: 加工硬化 | F68: σy＝ | H68: =$J$28 -> 527.5 | J68: ×（D／tp）-0.104
G69: ＝ | H69: =$J$28 -> 527.5 | J69: ×（ | K69: =$O$7 -> 0.3185 | M69: ／ | N69: =$O$8 -> 0.0103 | P69: ）-0.104
G70: ＝ | H70: =ROUND($J$28*($O$7/$O$8)^-0.104,3) -> 369.177 | J70: N/mm3
G71: ＝ | H71: =ROUND(1000*$J$28*($O$7/$O$8)^-0.104,0) -> 369177 | J71: kN/m3
C72: 衝撃割増 | F72: σyd＝ | H72: =$J$29 -> 1.2 | J72: ×σy
G73: ＝ | H73: =$J$29 -> 1.2 | J73: × | K73: =H71 -> 369177
G74: ＝ | H74: =ROUND($J$29*H71,0) -> 443012 | J74: kN/m3
F75: ＭＲ＝ | H75: Z×σdy
G76: ＝ | H76: =$J$20 -> 0.000537 | J76: × | K76: =H74 -> 443012
G77: ＝ | H77: =ROUND($J$20*H74,3) -> 237.897 | J77: kN・m
B79: ・杭に発生する反力
C80: 杭に発生する曲げ応力が杭の曲げ耐力に等しくなるような反力Fmaxを求める。
C81: ここで、 | F81: Fmax＝ | H81: 106.2895278 | J81: kN | L81: と仮定する。
C82: これに対する杭の曲げ応力は、チャンの方法により下式を用いて算定する。
D83: （杭の最大曲げモーメント）
F84: Ｍmax＝ | H84: － | I84: （1+2βh）2+1 | L84: ・exp | N84: -tan-1 | P84: 1 | R84: ・Fmax・h
I85: 2βh | P85: 1+2βh
N86: （漁港漁場の施設の設計参考図書（2015年版）,p.266より）
F87: ＝ | H87: － | I87: （1+2× | K87: =$J$26 -> 0.6114 | M87: × | N87: =$J$36 -> 2 | P87: ）2+1
K88: 2× | L88: =$J$26 -> 0.6114 | N88: × | O88: =$J$36 -> 2
H89: ×exp | J89: -tan-1 | L89: 1
L90: 1+2× | N90: =$J$26 -> 0.6114 | P90: × | Q90: =$J$36 -> 2
H91: × | I91: =H81 -> 106.2895278 | K91: × | L91: =$J$36 -> 2
G93: ＝ | H93: =ROUND((((1+2*$J$26*$J$36)^2+1)^(1/2)/(2*$J$26*$J$36)*EXP(-ATAN(1/(1+2*$J$26*$J$36))))*H81*$J$36,3) -> 235.119 | J93: kN・m
D94: （杭の最大曲げ応力）
F95: σmax＝ | H95: Ｍmax／Z
G96: ＝ | H96: =H93 -> 235.119 | J96: ／ | K96: =$J$20 -> 0.000537
G97: ＝ | H97: =ROUND(H93/$J$20,3) -> 437837.989 | J97: kN/㎡
C98: ここで、
D99: ＭＲ／Ｍmax＝ | H99: =$H$77 -> 237.897 | J99: ／ | K99: =H93 -> 235.119
G100: ＝ | H100: =ROUNDDOWN($H$77/H93,3) -> 1.011 | J100: =IF(H100>=1,"≧1.0 となり、","＜1.0 となり、") -> ≧1.0 となり、
C101: =IF(H100>=1," 杭に発生する曲げ応力が曲げ耐力に概ね等しくなるので、上記Fmax値に対する吸収エネルギーの照査を行う。"," 杭に発生する曲げ応力が曲げ耐力を上回るので、計算条件を再設定する必要がある。") -> 杭に発生する曲げ応力が曲げ耐力に概ね等しくなるので、上記Fmax値に対する吸収エネルギーの照査を行う。
B104: ・吸収エネルギー
C105: 衝突エネルギーは、支柱の梁変形と衝突点の支柱断面の局部変形（凹み）で吸収するものとする。
C107: 梁変形による吸収エネルギーは、荷重Fmaxと変位量から以下のように求める。変位量は、チャンの方法による杭頭変位量の算定式から求める。
D109: （杭の変位量）
F110: ｙｔｏｐ＝ | H110: 2（1＋βh）3+1 | L110: ・Fmax
H111: 6EIβ3
N112: （漁港漁場の施設の設計参考図書（2015年版）,p.266より）
G113: ＝ | H113: 2×（1+ | J113: =$J$26 -> 0.6114 | L113: × | M113: =$J$36 -> 2 | O113: ）3+1 | Q113: × | R113: =H81 -> 106.2895278
I114: 6× | J114: =$J$19 -> 16800 | L114: × | M114: =$J$26 -> 0.6114 | O114: 3
G115: ＝ | H115: =ROUND((2*(1+$J$26*$J$36)^3+1)/(6*$J$19*$J$26^3)*H81,3) -> 0.106 | J115: m
D116: （梁変形による吸収エネルギー）
F117: Ｅｎ＝ | H117: n×1/2×Fmax×ytop
G118: ＝ | H118: =$J$30 -> 1 | I118: ×1/2× | K118: =H81 -> 106.2895278 | M118: × | N118: =H115 -> 0.106
G119: ＝ | H119: =ROUND($J$30*1/2*H81*H115,3) -> 5.633 | J119: kN・m
C120: 局部変形による吸収エネルギーは、荷重Fmaxとそれに対する凹み量から求める。
D121: （荷重Fmaxに対する凹み量）
F122: δＬ０＝ | H122: D× | J122: 4Fmax | M122: 1.25
J123: K・σyd・tp2
G124: ＝ | H124: =$J$13 -> 0.313 | J124: × | N124: 4× | O124: =H81 -> 106.2895278 | T124: 1.25
K125: 185 | M125: × | N125: =$H$74 -> 443012 | P125: × | Q125: =$J$12 -> 0.007 | S125: 2
G126: ＝ | H126: =ROUND($J$13*(4*H81/185/$H$74/$J$12^2)^1.25,3) -> 0.019 | J126: m | N126: （ここに、K：実験定数（=185））
D127: （局部変形による吸収エネルギー）
F128: ＥＲ＝ | H128: Fmax | I128: δＬ０
I129: 1.8
G130: ＝ | H130: =H81 -> 106.2895278 | J130: × | K130: =H126 -> 0.019
K131: 1.8
G132: ＝ | H132: =ROUND(H81*H126/1.8,3) -> 1.122 | J132: kN・m
C133: 以上の和から、吸収エネルギーは以下のとおりとなる。
E134: Ｅｎ＋ＥＲ＝ | H134: =H119+H132 -> 6.755 | J134: kN・m
C135: ここで、
C136: （Ｅｎ＋ＥＲ）／Ｅｄ＝ | H136: =H134 -> 6.755 | J136: ／ | K136: =$J$35 -> 0.668
G137: ＝ | H137: =ROUNDDOWN(H134/$J$35,3) -> 10.112 | J137: =IF(H137>=1,"≧1.0 となり、","＜1.0 となり、") -> ≧1.0 となり、
C138: =IF(H137>=1," 杭の吸収エネルギーが衝突エネルギーを上回るので、本条件により杭の諸元を確定する。"," 杭の吸収エネルギーが衝突エネルギーを下回るので、計算条件を再設定する必要がある。") -> 杭の吸収エネルギーが衝突エネルギーを上回るので、本条件により杭の諸元を確定する。
A141: ■STEP-2：作用荷重の決定、杭の挙動解析（発生応力、所要根入れ長）
B142: STEP-1で確定した断面諸元を有する杭部材に漂流物が衝突した場合の挙動を解析する。 杭が吸収するエネルギーが衝突エネルギーに等しくなるような衝突力Fを求める。この衝突力が作用するときの杭の断面応力及び所要根入れ長を計算するとともに、杭の吸収エネルギーが衝突エネルギーに等しいことを説明する。
B146: ・杭に発生する反力
C147: 杭に発生する曲げ応力が杭の曲げ耐力に等しくなるような反力Fを求める。
C148: ここで、 | F148: F＝ | H148: 34.12571301 | J148: kN | L148: と仮定する。
D149: （杭の最大曲げモーメント）
F150: Ｍmax＝ | H150: － | I150: （1+2βh）2+1 | L150: ・exp | N150: -tan-1 | P150: 1 | R150: ・F・h
I151: 2βh | P151: 1+2βh
N152: （漁港漁場の施設の設計参考図書（2015年版）,p.266より）
G153: ＝ | H153: － | I153: （1+2× | K153: =$J$26 -> 0.6114 | M153: × | N153: =$J$36 -> 2 | P153: ）2+1
K154: 2× | L154: =$J$26 -> 0.6114 | N154: × | O154: =$J$36 -> 2
H155: ×exp | J155: -tan-1 | L155: 1
L156: 1+2× | N156: =$J$26 -> 0.6114 | P156: × | Q156: =$J$36 -> 2
H157: × | I157: =H148 -> 34.12571301 | K157: × | L157: =$J$36 -> 2
G159: ＝ | H159: =ROUND((((1+2*$J$26*$J$36)^2+1)^(1/2)/(2*$J$26*$J$36)*EXP(-ATAN(1/(1+2*$J$26*$J$36))))*H148*$J$36,3) -> 75.488 | J159: kN・m
D160: （杭の最大曲げ応力）
F161: σmax＝ | H161: Ｍmax／Z
G162: ＝ | H162: =H159 -> 75.488 | J162: ／ | K162: =$J$20 -> 0.000537
G163: ＝ | H163: =ROUND(H159/$J$20,3) -> 140573.557 | J163: kN/㎡
C164: ここで、
D165: ＭＲ／Ｍmax＝ | H165: =$H$77 -> 237.897 | J165: ／ | K165: =H159 -> 75.488
G166: ＝ | H166: =ROUNDDOWN($H$77/H159,3) -> 3.151 | J166: =IF(H165>=1,"≧1.0 となり、","＜1.0 となり、") -> ≧1.0 となり、
C167: =IF(H166>=1," 杭の曲げ耐力が曲げ応力を上回ることを確認した。"," 杭に発生する曲げ応力が杭の曲げ耐力を上回るので、計算条件を再設定する必要がある。") -> 杭の曲げ耐力が曲げ応力を上回ることを確認した。
B170: ・吸収エネルギー
C171: 梁変形による吸収エネルギーは、荷重Fと変位量から以下のように求める。変位量は、チャンの方法による杭頭変位量の算定式から求める。
D173: （杭の変位量）
F174: ｙｔｏｐ＝ | H174: 2（1＋βh）3+1 | L174: ・F
H175: 6EIβ3
N176: （漁港漁場の施設の設計参考図書（2015年版）,p.266より）
G177: ＝ | H177: 2×（1+ | J177: =$J$26 -> 0.6114 | L177: × | M177: =$J$36 -> 2 | O177: ）3+1 | Q177: × | R177: =H148 -> 34.12571301
I178: 6× | J178: =$J$19 -> 16800 | L178: × | M178: =$J$26 -> 0.6114 | O178: 3
G179: ＝ | H179: =ROUND((2*(1+$J$26*$J$36)^3+1)/(6*$J$19*$J$26^3)*H148,3) -> 0.034 | J179: m
D180: （梁変形による吸収エネルギー）
F181: Ｅｎ＝ | H181: n×1/2×F×ytop
G182: ＝ | H182: =$J$30 -> 1 | I182: ×1/2× | K182: =H148 -> 34.12571301 | M182: × | N182: =H179 -> 0.034
G183: ＝ | H183: =ROUND($J$30*1/2*H148*H179,3) -> 0.58 | J183: kN・m
C184: 局部変形による吸収エネルギーは、荷重Fとそれに対する凹み量から求める。
D185: （荷重Fに対する凹み量）
F186: δＬ０＝ | H186: D× | J186: 4F | M186: 1.25
J187: K・σyd・tp2
G188: ＝ | H188: =$J$13 -> 0.313 | J188: × | N188: 4× | O188: =H148 -> 34.12571301 | T188: 1.25
K189: 185 | M189: × | N189: =$H$74 -> 443012 | P189: × | Q189: =$J$12 -> 0.007 | S189: 2
G190: ＝ | H190: =ROUND($J$13*(4*H148/185/$H$74/$J$12^2)^1.25,3) -> 0.005 | J190: m | N190: （ここに、K：実験定数（=185））
D191: （局部変形による吸収エネルギー）
F192: ＥＲ＝ | H192: Po | I192: δＬ０
I193: 1.8
G194: ＝ | H194: =H148 -> 34.12571301 | J194: × | K194: =H190 -> 0.005
K195: 1.8
G196: ＝ | H196: =ROUND(H148*H190/1.8,3) -> 0.095 | J196: kN・m
C197: 以上の和から、吸収エネルギーは以下のとおりとなる。
E198: Ｅｎ＋ＥＲ＝ | H198: =H183+H196 -> 0.675 | J198: kN・m
C199: ここで、
C200: （Ｅｎ＋ＥＲ）／Ｅｄ＝ | H200: =H198 -> 0.675 | J200: ／ | K200: =$J$35 -> 0.668
G201: ＝ | H201: =ROUNDDOWN(H198/$J$35,3) -> 1.01 | J201: =IF(H201>=1,"≧1.0 となり、","＜1.0 となり、") -> ≧1.0 となり、
C202: =IF(H201>=1," 杭の吸収エネルギーが衝突エネルギーと概ね等しくなる。"," 杭の吸収エネルギーが衝突エネルギーを下回るので、計算条件を再設定する必要がある。") -> 杭の吸収エネルギーが衝突エネルギーと概ね等しくなる。
B205: ・根入れ長の決定
C206: 杭の所要根入れ長は、チャンの式により算定する。
F207: ｌｍ１＝ | H207: 3
H208: β
G209: ＝ | H209: 3
H210: =$J$26 -> 0.6114
G211: ＝ | H211: =ROUND(3/$J$26,2) -> 4.91 | J211: m

Sheet colliding_force（車両）
A1: 漂流物（車両）の衝突エネルギーの計算
A2: ■計算条件
B3: ①漂流物の諸元
B4: 設計漂流物として、吃水が浸水深位内となる対象漂流物の中で重量が最大となる以下を用いる。
B6: ・漂流物諸元
C7: 名称 | J7: 普通乗用車
C8: 全長 | H8: L＝ | J8: 5 | L8: m
C9: 車幅 | H9: B＝ | J9: 2 | L9: m
C10: 重量 | H10: Wo＝ | J10: 24.5 | L10: kN
C11: 空荷吃水 | H11: Do＝ | J11: =ROUND((J10/10.1)/(J8*J9),2) -> 0.24 | L11: m | N11: ※車両の吃水＝（カタログ重量÷海水の単位体積重量）／（車両の長さ×幅）
C12: 重力加速度 | H12: g＝ | J12: 9.81 | L12: m2/sec
B14: ②津波の諸元
B15: 津波の諸元については、津波漂流物対策施設を整備する●●漁港における当該箇所の津波シミュレーション結果から、現実的な対策レベルから大きく外れていないと推定される範囲の外力値を設定する。
B18: ・津波諸元
C19: 浸水深 | H19: h＝ | J19: 2 | L19: m
C20: 流速 | H20: VH＝ | J20: 0.71 | L20: m/sec
A22: ■衝突エネルギーの計算
B23: （車両の仮想重量）
D24: W＝ | F24: Wo＋（π/4）Do2×L×γw
E25: ＝ | F25: =$J$10 -> 24.5 | H25: ＋（π/4） | J25: × | K25: =$J$11 -> 0.24 | M25: 2× | N25: =$J$8 -> 5 | P25: × | Q25: 10.1
E26: ＝ | F26: =ROUND($J$10+(PI()/4)*$J$11^2*$J$8*10.1,3) -> 26.785 | H26: kN
D27: ここに、
E28: γw： | G28: 海水の単位体積重量 | L28: （kN/m3）
B30: （車両の衝突エネルギー）
B31: 衝突エネルギーは以下のとおり算定する。
D32: Ed＝ | F32: W | G32: × | H32: VH2
G33: 2g
E34: ＝ | F34: =F26 -> 26.785 | H34: × | I34: =$J$20 -> 0.71 | K34: 2
F35: 2 | H35: × | I35: =$J$12 -> 9.81
E36: ＝ | F36: =ROUND(F26*$J$20^2/2/$J$12,3) -> 0.688 | H36: kN・m

Sheet colliding_force（船舶）
A1: 漂流物（船舶）の衝突エネルギーの計算
A2: ■計算条件
B3: ①漂流物の諸元
B4: 設計漂流物として、吃水が浸水深位内となる対象漂流物の中で重量が最大となる以下を用いる。
B6: ・漂流物諸元
C7: 名称 | J7: 漁船●●G.T.
C8: 全長 | H8: L＝ | J8: 21.4 | L8: m
C9: 車幅 | H9: B＝ | J9: 5.1 | L9: m
C10: 排水トン数 | H10: Wo＝ | J10: 600 | L10: kN
C11: 空荷吃水 | H11: Do＝ | J11: 1 | L11: m
C12: 重力加速度 | H12: g＝ | J12: 9.81 | L12: m2/sec
B14: ②津波の諸元
B15: 津波の諸元については、津波漂流物対策施設を整備する●●漁港における当該箇所の津波シミュレーション結果から、現実的な対策レベルから大きく外れていないと推定される範囲の外力値を設定する。
B18: ・津波諸元
C19: 浸水深 | H19: h＝ | J19: 1.5 | L19: m
C20: 流速 | H20: VH＝ | J20: 1.1 | L20: m/sec
A22: ■衝突エネルギーの計算
B23: （船舶の仮想重量）
D24: W＝ | F24: Wo＋（π/4）Do2×L×γw
E25: ＝ | F25: =$J$10 -> 600 | H25: ＋（π/4） | J25: × | K25: =$J$11 -> 1 | M25: 2× | N25: =$J$8 -> 21.4 | P25: × | Q25: 10.1
E26: ＝ | F26: =ROUND($J$10+(PI()/4)*$J$11^2*$J$8*10.1,3) -> 769.756 | H26: kN
D27: ここに、
E28: γw： | G28: 海水の単位体積重量 | L28: （kN/m3）
B30: （船舶の衝突エネルギー）
B31: 衝突エネルギーは、1/4点衝突（船の回転により衝突エネルギーが消費されるもの）として、以下のとおり算定する。
D33: Ed＝ | F33: W | G33: × | H33: VH2
G34: 4g
E35: ＝ | F35: =F26 -> 769.756 | H35: × | I35: =$J$20 -> 1.1 | K35: 2
F36: 4 | H36: × | I36: =$J$12 -> 9.81
E37: ＝ | F37: =ROUND(F26*$J$20^2/4/$J$12,3) -> 23.736 | H37: kN・m

Sheet collision_energy (池野式)
A1: 池野らの式による漂流物の衝突力の計算
A2: ■計算条件
B3: ①漂流物の諸元
B4: 設計漂流物として、吃水が浸水深位内となる対象漂流物の中で重量が最大となる以下を用いる。
B6: ・漂流物諸元
C7: 名称 | J7: 普通乗用車
C8: 漂流物の高さ | H8: D＝ | J8: 2 | L8: m
C9: 全長 | H9: L＝ | J9: 5 | L9: m
C10: 質量 | H10: M＝ | J10: 2.5 | L10: t
C11: 付加質量係数 | H11: CMA＝ | J11: =IF(M11=X11,W11,IF(M11=X12,W12,IF(M11=X13,W13,IF(M11=X14,W14,IF(M11=X15,W15,IF(M11=X16,W16,IF(M11=X17,W17,IF(M11=X18,W18,IF(M11=X19,W19,IF(M11=X20,W20)))))))))) -> 2 | M11: （円柱横向き（二次元）） | W11: 2 | X11: （円柱横向き（二次元））
C12: 重力加速度 | H12: g＝ | J12: 9.81 | L12: m2/sec | W12: 1.5 | X12: （円柱横向き（三次元））
C13: 係数 | H13: S＝ | J13: 5 | W13: 2 | X13: （角柱横向き（二次元）①）
W14: 2.5 | X14: （角柱横向き（二次元）②）
B15: ②津波の諸元 | W15: 3 | X15: （角柱横向き（二次元）③）
B16: 津波の諸元については、津波漂流物対策施設を整備する●●漁港における当該箇所の津波シミュレーション結果から、現実的な対策レベルから大きく外れていないと推定される範囲の外力値を設定する。 | W16: 3.5 | X16: （角柱横向き（二次元）④）
W17: 4 | X17: （角柱横向き（二次元）⑤）
W18: 1.5 | X18: （角柱横向き（三次元））
B19: ・津波諸元 | W19: 2 | X19: （円柱縦向き）
C20: 浸水深 | H20: h＝ | J20: 2 | L20: m | W20: 0.8 | X20: （球）
C21: 流速 | H21: VH＝ | J21: 0.71 | L21: m/sec
A23: ■衝突力の計算
B24: 漂流物の衝突力は、池野らの式を用いて算定する。
D25: F1＝ | F25: S×CMA× | K25: VH | N25: 0.25 | P25: ×g×M
I26: g0.5・ | K26: D0.25・ | M26: L0.25
E27: ＝ | F27: =J13 -> 5 | G27: × | H27: =J11 -> 2 | I27: × | J27: =$J$21 -> 0.71 | R27: 2.5
J28: =$J$12 -> 9.81 | K28: 0.5 | L28: × | M28: =$J$8 -> 2 | N28: 0.25 | O28: × | P28: =$J$9 -> 5 | Q28: 0.25
G29: × | H29: =$J$12 -> 9.81 | I29: × | J29: =$J$10 -> 2.5
E31: ＝ | F31: =ROUND($J$13*$J$11*($J$21/($J$12^0.5)/($J$8^0.25)/($J$9^0.25))^2.5*$J$12*J$10,3) -> 1.423 | H31: kN
